[Event "*** Titled Tuesday 3|2 Blitz"]
[Site "Chess.com"]
[Date "2016.08.02"]
[Round "3"]
[White "GremioPrudente"]
[Black "Quiet_Desperation"]
[Result "1-0"]
[WhiteElo "2086"]
[BlackElo "2133"]
[TimeControl "180+2"]
[EndTime "11:39:22 PDT"]
[Termination "GremioPrudente won by resignation"]

1. Nf3 {[%clk 0:03:01.7]} 1... Nf6 {[%clk 0:02:09.8]} 2. c4 {[%clk 0:03:01.1]}
2... e6 {[%clk 0:02:09.5]} 3. d4 {[%clk 0:03:01.4]} 3... Bb4+ {[%clk 0:02:07.9]}
4. Nbd2 {[%clk 0:03:00.6]} 4... b6 {[%clk 0:02:00.9]} 5. g3 {[%clk 0:02:58.5]}
5... Bb7 {[%clk 0:01:54.3]} 6. Bg2 {[%clk 0:02:59.2]} 6... O-O {[%clk 0:01:55]}
7. O-O {[%clk 0:02:59.1]} 7... Be7 {[%clk 0:01:56]} 8. Qc2 {[%clk 0:02:57.7]}
8... d5 {[%clk 0:01:56.9]} 9. Rd1 {[%clk 0:02:49.3]} 9... c5 {[%clk 0:01:57.6]}
10. dxc5 {[%clk 0:02:46.3]} 10... bxc5 {[%clk 0:01:58.6]} 11. cxd5 {[%clk
0:02:46.9]} 11... exd5 {[%clk 0:01:59.3]} 12. Nc4 {[%clk 0:02:34]} 12... Nc6
{[%clk 0:01:51.5]} 13. Nce5 {[%clk 0:02:25.4]} 13... Nxe5 {[%clk 0:01:40.4]} 14.
Nxe5 {[%clk 0:02:26.3]} 14... Rc8 {[%clk 0:01:33.7]} 15. Bg5 {[%clk 0:02:20.4]}
15... h6 {[%clk 0:01:32.2]} 16. Bxf6 {[%clk 0:02:06.4]} 16... Bxf6 {[%clk
0:01:28.5]} 17. Nd3 {[%clk 0:02:05.5]} 17... c4 {[%clk 0:01:00.9]} 18. Nf4
{[%clk 0:02:04.5]} 18... Qb6 {[%clk 0:00:43.4]} 19. Nxd5 {[%clk 0:01:56.9]}
19... Bxd5 {[%clk 0:00:44.5]} 20. Bxd5 {[%clk 0:01:57.5]} 20... Qxb2 {[%clk
0:00:45.6]} 21. Rac1 {[%clk 0:01:42.4]} 21... Qxc2 {[%clk 0:00:42.3]} 22. Rxc2
{[%clk 0:01:43.2]} 22... c3 {[%clk 0:00:42.1]} 23. e4 {[%clk 0:01:32.1]} 23...
Rb8 {[%clk 0:00:32.3]} 24. Bb3 {[%clk 0:01:26.4]} 24... a5 {[%clk 0:00:27.3]}
25. f4 {[%clk 0:01:22.7]} 25... Rbc8 {[%clk 0:00:08.4]} 26. e5 {[%clk
0:01:22.2]} 26... Be7 {[%clk 0:00:09.9]} 27. Rd7 {[%clk 0:01:18.5]} 27... Bb4
{[%clk 0:00:10.9]} 28. Kf2 {[%clk 0:01:08.6]} 28... Rcd8 {[%clk 0:00:07]} 29. e6
{[%clk 0:01:00.3]} 29... Rxd7 {[%clk 0:00:06.7]} 30. exd7 {[%clk 0:01:01.1]}
30... Rd8 {[%clk 0:00:08.3]} 31. a3 {[%clk 0:00:59.9]} 31... Bxa3 {[%clk
0:00:06.5]} 32. Rxc3 {[%clk 0:01:00.8]} 32... Bb4 {[%clk 0:00:06.7]} 33. Rd3
{[%clk 0:01:00.1]} 33... Kf8 {[%clk 0:00:07.6]} 34. Ba4 {[%clk 0:00:56.1]} 34...
Ke7 {[%clk 0:00:08.9]} 35. Re3+ {[%clk 0:00:53.5]} 35... Kd6 {[%clk 0:00:08.6]}
36. Re8 {[%clk 0:00:53.6]} 36... Rxd7 {[%clk 0:00:09.2]} 37. Bxd7 {[%clk
0:00:53.5]} 37... Kxd7 {[%clk 0:00:11.1]} 38. Ra8 {[%clk 0:00:49.8]} 38... Kc6
{[%clk 0:00:10.7]} 39. Ke3 {[%clk 0:00:48.6]} 39... Kb5 {[%clk 0:00:10.9]} 40.
Kd3 {[%clk 0:00:48.5]} 40... a4 {[%clk 0:00:11.5]} 41. Kc2 {[%clk 0:00:47.8]}
41... Bc5 {[%clk 0:00:12.4]} 42. h3 {[%clk 0:00:44.7]} 42... a3 {[%clk
0:00:13.1]} 43. Kb3 {[%clk 0:00:44.9]} 43... Kc6 {[%clk 0:00:14.2]} 44. Rd8
{[%clk 0:00:30.6]} 44... h5 {[%clk 0:00:10.3]} 45. Rh8 {[%clk 0:00:27.5]} 45...
g6 {[%clk 0:00:10.9]} 46. Rh7 {[%clk 0:00:26.4]} 46... Bf2 {[%clk 0:00:11.2]}
47. g4 {[%clk 0:00:18.9]} 47... hxg4 {[%clk 0:00:10.9]} 48. hxg4 {[%clk
0:00:19.8]} 48... f5 {[%clk 0:00:11.9]} 49. g5 {[%clk 0:00:19.7]} 49... Kd5
{[%clk 0:00:12.8]} 50. Rh6 {[%clk 0:00:20.7]} 50... Ke4 {[%clk 0:00:14.2]} 51.
Rxg6 {[%clk 0:00:21.4]} 51... Kxf4 {[%clk 0:00:15.9]} 52. Rg8 {[%clk 0:00:22.1]}
52... Bd4 {[%clk 0:00:15.8]} 53. g6 {[%clk 0:00:19.3]} 53... Kg5 {[%clk
0:00:17.1]} 54. Kxa3 {[%clk 0:00:19]} 54... f4 {[%clk 0:00:18.1]} 55. Kb3 {[%clk
0:00:15.5]} 55... f3 {[%clk 0:00:16.1]} 56. Rf8 {[%clk 0:00:13.8]} 56... f2
{[%clk 0:00:15.1]} 57. g7 {[%clk 0:00:13.8]} 57... Bxg7 {[%clk 0:00:12.6]} 58.
Rxf2 {[%clk 0:00:14.4]} 58... Be5 {[%clk 0:00:13.8]} 59. Kc4 {[%clk 0:00:13.6]}
59... Bg3 {[%clk 0:00:14.7]} 60. Rg2 {[%clk 0:00:11.8]} 60... Kg4 {[%clk
0:00:16]} 61. Kd5 {[%clk 0:00:11.9]} 61... Kf3 {[%clk 0:00:17.3]} 62. Ra2 {[%clk
0:00:12.4]} 62... Bf4 {[%clk 0:00:18.3]} 63. Ke6 {[%clk 0:00:12.5]} 63... Bg5
{[%clk 0:00:16.9]} 64. Kf5 {[%clk 0:00:13.8]} 64... Bc1 {[%clk 0:00:16.2]} 65.
Rc2 {[%clk 0:00:14.2]} 65... Be3 {[%clk 0:00:17.3]} 66. Rc3 {[%clk 0:00:15.1]}
66... Ke2 {[%clk 0:00:18.5]} 67. Ke4 {[%clk 0:00:15.8]} 67... Kd2 {[%clk
0:00:19.9]} 68. Rxe3 {[%clk 0:00:16.2]} 1-0

[Event "*** Titled Tuesday 3|2 Blitz"]
[Site "Chess.com"]
[Date "2016.08.02"]
[Round "3"]
[White "danir29"]
[Black "Semetey"]
[Result "0-1"]
[WhiteElo "2456"]
[BlackElo "2434"]
[TimeControl "180+2"]
[EndTime "11:39:26 PDT"]
[Termination "Semetey won by checkmate"]

1. d4 {[%clk 0:03:01.9]} 1... Nf6 {[%clk 0:03:00.3]} 2. Bf4 {[%clk 0:03:02.4]}
2... d5 {[%clk 0:03:00]} 3. e3 {[%clk 0:03:03]} 3... e6 {[%clk 0:02:57.2]} 4.
Nd2 {[%clk 0:03:00.8]} 4... Bd6 {[%clk 0:02:58.2]} 5. Bg3 {[%clk 0:03:01.4]}
5... O-O {[%clk 0:02:57]} 6. Ngf3 {[%clk 0:02:56.4]} 6... Ne4 {[%clk 0:02:56.2]}
7. Bd3 {[%clk 0:02:51.9]} 7... f5 {[%clk 0:02:56.8]} 8. c4 {[%clk 0:02:50.4]}
8... c6 {[%clk 0:02:57.7]} 9. O-O {[%clk 0:02:46]} 9... Nxg3 {[%clk 0:02:44.2]}
10. hxg3 {[%clk 0:02:45.9]} 10... Nd7 {[%clk 0:02:45.3]} 11. Qc2 {[%clk
0:02:44.6]} 11... Nf6 {[%clk 0:02:46.1]} 12. cxd5 {[%clk 0:02:43.1]} 12... cxd5
{[%clk 0:02:46.8]} 13. Rfc1 {[%clk 0:02:40.5]} 13... Bd7 {[%clk 0:02:47.8]} 14.
Ne5 {[%clk 0:02:37.2]} 14... Qb6 {[%clk 0:02:33.9]} 15. Qb3 {[%clk 0:02:26.1]}
15... Rfc8 {[%clk 0:02:32.2]} 16. Qxb6 {[%clk 0:02:21.2]} 16... axb6 {[%clk
0:02:30.6]} 17. a3 {[%clk 0:02:21.7]} 17... Kf8 {[%clk 0:02:31.6]} 18. Nxd7+
{[%clk 0:02:12.9]} 18... Nxd7 {[%clk 0:02:32.2]} 19. g4 {[%clk 0:02:14.6]} 19...
g6 {[%clk 0:02:30.5]} 20. gxf5 {[%clk 0:02:14.1]} 20... gxf5 {[%clk 0:02:31.6]}
21. g3 {[%clk 0:02:13.4]} 21... Kg7 {[%clk 0:02:22.8]} 22. Kg2 {[%clk
0:02:07.2]} 22... Nf6 {[%clk 0:02:22.2]} 23. Nf3 {[%clk 0:01:47.2]} 23... h6
{[%clk 0:02:23.3]} 24. Ng1 {[%clk 0:01:37.9]} 24... Rc7 {[%clk 0:01:50.9]} 25.
Rxc7+ {[%clk 0:01:33.2]} 25... Bxc7 {[%clk 0:01:52.2]} 26. Rc1 {[%clk 0:01:34]}
26... Bd6 {[%clk 0:01:53.4]} 27. Ne2 {[%clk 0:01:34.5]} 27... Kf7 {[%clk
0:01:48]} 28. Rh1 {[%clk 0:01:31.2]} 28... Rh8 {[%clk 0:01:48.5]} 29. Nc3 {[%clk
0:01:31.9]} 29... Ke7 {[%clk 0:01:47.6]} 30. Na4 {[%clk 0:01:30.8]} 30... Bc7
{[%clk 0:01:48.5]} 31. Rc1 {[%clk 0:01:30.6]} 31... Kd8 {[%clk 0:01:47]} 32. Nc3
{[%clk 0:01:28.9]} 32... h5 {[%clk 0:01:40.5]} 33. Nb5 {[%clk 0:01:29.8]} 33...
Bb8 {[%clk 0:01:41.1]} 34. Rh1 {[%clk 0:01:19.8]} 34... Ke7 {[%clk 0:01:41.3]}
35. Kf3 {[%clk 0:01:18.1]} 35... Ng4 {[%clk 0:01:28.5]} 36. Ke2 {[%clk
0:01:15.6]} 36... Nf6 {[%clk 0:01:27.9]} 37. Kd2 {[%clk 0:01:15]} 37... Ng4
{[%clk 0:01:29]} 38. Ke2 {[%clk 0:01:16.3]} 38... Nf6 {[%clk 0:01:30]} 39. Ke1
{[%clk 0:01:10.2]} 39... Kd7 {[%clk 0:01:30.7]} 40. Be2 {[%clk 0:01:10.9]} 40...
Rh7 {[%clk 0:01:28.9]} 41. Bf3 {[%clk 0:01:10.8]} 41... Ke7 {[%clk 0:01:24.6]}
42. Kd2 {[%clk 0:01:11.1]} 42... Rh8 {[%clk 0:01:14.8]} 43. Rc1 {[%clk
0:01:09.7]} 43... Kd7 {[%clk 0:01:15.5]} 44. Rh1 {[%clk 0:01:09.6]} 44... Rc8
{[%clk 0:01:12]} 45. Nc3 {[%clk 0:01:01.5]} 45... Rh8 {[%clk 0:01:05.6]} 46. Na4
{[%clk 0:00:58.4]} 46... Bc7 {[%clk 0:01:04.5]} 47. Nc3 {[%clk 0:00:59.6]} 47...
Bd6 {[%clk 0:01:05.1]} 48. Nb5 {[%clk 0:01:00.6]} 48... Bb8 {[%clk 0:01:06]} 49.
a4 {[%clk 0:00:58.6]} 49... Rc8 {[%clk 0:01:03.4]} 50. Rh2 {[%clk 0:00:54.3]}
50... Rh8 {[%clk 0:00:58.8]} 51. Rh1 {[%clk 0:00:54.7]} 51... Rc8 {[%clk
0:00:58.6]} 52. Rc1 {[%clk 0:00:53.8]} 52... Rh8 {[%clk 0:00:54]} 53. Rh1 {[%clk
0:00:52.4]} 53... Ke7 {[%clk 0:00:50.9]} 54. Kd3 {[%clk 0:00:53.9]} 54... Kd7
{[%clk 0:00:46.2]} 55. Nc3 {[%clk 0:00:52.3]} 55... Bd6 {[%clk 0:00:45.6]} 56.
Ne2 {[%clk 0:00:52.3]} 56... Ke7 {[%clk 0:00:43.9]} 57. Ra1 {[%clk 0:00:46]}
57... Ra8 {[%clk 0:00:35.4]} 58. Nc3 {[%clk 0:00:47.2]} 58... Rh8 {[%clk
0:00:28.2]} 59. a5 {[%clk 0:00:45.8]} 59... bxa5 {[%clk 0:00:28.6]} 60. Rxa5
{[%clk 0:00:46.9]} 60... h4 {[%clk 0:00:26.6]} 61. gxh4 {[%clk 0:00:45.8]} 61...
Rxh4 {[%clk 0:00:27.4]} 62. Ra7 {[%clk 0:00:47.1]} 62... Rh2 {[%clk 0:00:28.7]}
63. Rxb7+ {[%clk 0:00:46.4]} 63... Kd8 {[%clk 0:00:30.1]} 64. Nd1 {[%clk
0:00:46.8]} 64... Ne4 {[%clk 0:00:28.5]} 65. Bxe4 {[%clk 0:00:46.7]} 65... fxe4+
{[%clk 0:00:29.3]} 66. Ke2 {[%clk 0:00:48]} 66... Rh1 {[%clk 0:00:29.9]} 67. b4
{[%clk 0:00:47.7]} 67... Kc8 {[%clk 0:00:29.7]} 68. Rg7 {[%clk 0:00:23.3]} 68...
Bxb4 {[%clk 0:00:30.4]} 69. Nb2 {[%clk 0:00:23]} 69... Re1# {[%clk 0:00:30.4]}
0-1

[Event "*** Titled Tuesday 3|2 Blitz"]
[Site "Chess.com"]
[Date "2016.08.02"]
[Round "3"]
[White "stefanodinn"]
[Black "oggy1984"]
[Result "1-0"]
[WhiteElo "2209"]
[BlackElo "2303"]
[TimeControl "180+2"]
[EndTime "11:40:00 PDT"]
[Termination "stefanodinn won on time"]

1. e4 {[%clk 0:03:01.9]} 1... c6 {[%clk 0:03:00.5]} 2. d4 {[%clk 0:02:59.5]}
2... d5 {[%clk 0:03:02.4]} 3. Nc3 {[%clk 0:03:00.5]} 3... dxe4 {[%clk
0:03:02.5]} 4. Nxe4 {[%clk 0:03:01.5]} 4... Nf6 {[%clk 0:03:03.9]} 5. Nxf6+
{[%clk 0:02:59.8]} 5... exf6 {[%clk 0:03:05.8]} 6. Nf3 {[%clk 0:02:56.6]} 6...
Bf5 {[%clk 0:03:06.1]} 7. Be2 {[%clk 0:02:55.5]} 7... Bd6 {[%clk 0:03:06.5]} 8.
O-O {[%clk 0:02:55.8]} 8... O-O {[%clk 0:03:06.4]} 9. Be3 {[%clk 0:02:55.9]}
9... Qc7 {[%clk 0:03:06.1]} 10. c4 {[%clk 0:02:56.2]} 10... Nd7 {[%clk
0:03:03.4]} 11. Qd2 {[%clk 0:02:41.2]} 11... Rfe8 {[%clk 0:02:33.3]} 12. Rfd1
{[%clk 0:02:37.1]} 12... Bg4 {[%clk 0:02:28.8]} 13. h3 {[%clk 0:02:37.4]} 13...
Bh5 {[%clk 0:02:28.6]} 14. Rac1 {[%clk 0:02:37]} 14... Rad8 {[%clk 0:02:23.7]}
15. b4 {[%clk 0:02:22.1]} 15... f5 {[%clk 0:01:53.2]} 16. c5 {[%clk 0:02:02.9]}
16... Bf8 {[%clk 0:01:31.9]} 17. Bf4 {[%clk 0:01:57.9]} 17... Qc8 {[%clk
0:01:12.6]} 18. Qb2 {[%clk 0:01:41.8]} 18... Nf6 {[%clk 0:01:08]} 19. Bg5 {[%clk
0:01:38.1]} 19... Be7 {[%clk 0:01:04]} 20. b5 {[%clk 0:01:20.5]} 20... Ne4
{[%clk 0:00:50.2]} 21. Bxe7 {[%clk 0:01:20.6]} 21... Rxe7 {[%clk 0:00:49.5]} 22.
bxc6 {[%clk 0:01:17.3]} 22... bxc6 {[%clk 0:00:51.4]} 23. Ne5 {[%clk 0:00:40.9]}
23... Bxe2 {[%clk 0:00:49.8]} 24. Qxe2 {[%clk 0:00:41]} 24... f6 {[%clk
0:00:28.7]} 25. Qc4+ {[%clk 0:00:35.6]} 25... Kf8 {[%clk 0:00:27.7]} 26. Nf3
{[%clk 0:00:30.7]} 26... Red7 {[%clk 0:00:21.1]} 27. Qc2 {[%clk 0:00:21]} 27...
Rd5 {[%clk 0:00:19.8]} 28. Rb1 {[%clk 0:00:18.3]} 28... Qd7 {[%clk 0:00:16.4]}
29. Rdc1 {[%clk 0:00:16.8]} 29... g5 {[%clk 0:00:15]} 30. Rb4 {[%clk 0:00:15]}
30... Qe6 {[%clk 0:00:12]} 31. Re1 {[%clk 0:00:13]} 31... h5 {[%clk 0:00:11.5]}
32. Rb7 {[%clk 0:00:11.7]} 32... R8d7 {[%clk 0:00:11.9]} 33. Rxd7 {[%clk
0:00:12.2]} 33... Rxd7 {[%clk 0:00:13.1]} 34. Qb2 {[%clk 0:00:08.3]} 34... Kg7
{[%clk 0:00:12.7]} 35. a4 {[%clk 0:00:07.6]} 35... Kg6 {[%clk 0:00:10.7]} 36.
Nd2 {[%clk 0:00:08]} 36... Qd5 {[%clk 0:00:10.4]} 37. Nxe4 {[%clk 0:00:09.1]}
37... fxe4 {[%clk 0:00:12.3]} 38. Rd1 {[%clk 0:00:09.8]} 38... f5 {[%clk
0:00:12.3]} 39. Qb8 {[%clk 0:00:09.6]} 39... f4 {[%clk 0:00:09.4]} 40. Qe8+
{[%clk 0:00:10.4]} 40... Kh6 {[%clk 0:00:08.8]} 41. Qh8+ {[%clk 0:00:11.2]}
41... Kg6 {[%clk 0:00:09.3]} 42. Qe8+ {[%clk 0:00:12.1]} 42... Kf5 {[%clk
0:00:08.7]} 43. Qxh5 {[%clk 0:00:11.9]} 43... Qf7 {[%clk 0:00:08.2]} 44. Qg4+
{[%clk 0:00:10.9]} 44... Kg6 {[%clk 0:00:07.8]} 45. h4 {[%clk 0:00:12.1]} 45...
Qf5 {[%clk 0:00:08.7]} 46. Qxf5+ {[%clk 0:00:07.8]} 46... Kxf5 {[%clk
0:00:09.9]} 47. hxg5 {[%clk 0:00:09.5]} 47... Kxg5 {[%clk 0:00:11.8]} 48. Kf1
{[%clk 0:00:09.6]} 48... Kf5 {[%clk 0:00:12.2]} 49. Ke2 {[%clk 0:00:09.7]} 49...
Ke6 {[%clk 0:00:12.7]} 50. f3 {[%clk 0:00:09.6]} 50... Kd5 {[%clk 0:00:11.4]}
51. fxe4+ {[%clk 0:00:10.6]} 51... Kxe4 {[%clk 0:00:12.3]} 52. Kf2 {[%clk
0:00:11]} 52... Rg7 {[%clk 0:00:09.9]} 53. a5 {[%clk 0:00:10.5]} 53... Rg3
{[%clk 0:00:08.3]} 54. Re1+ {[%clk 0:00:07]} 54... Kxd4 {[%clk 0:00:09]} 55. Re7
{[%clk 0:00:07.7]} 55... Kxc5 {[%clk 0:00:06.2]} 56. Rxa7 {[%clk 0:00:08.8]}
56... Ra3 {[%clk 0:00:06.8]} 57. Rf7 {[%clk 0:00:07.4]} 57... Ra4 {[%clk
0:00:07]} 58. Rf5+ {[%clk 0:00:07.4]} 58... Kd6 {[%clk 0:00:05.8]} 59. Kf3
{[%clk 0:00:08.6]} 59... c5 {[%clk 0:00:06.9]} 60. Rxf4 {[%clk 0:00:08.7]} 60...
Rxa5 {[%clk 0:00:07.9]} 61. Rf5 {[%clk 0:00:07.5]} 61... Ra3+ {[%clk 0:00:06.9]}
62. Kf4 {[%clk 0:00:05.1]} 62... c4 {[%clk 0:00:06.9]} 63. Rf8 {[%clk
0:00:05.1]} 63... c3 {[%clk 0:00:07.2]} 64. Rc8 {[%clk 0:00:05.9]} 64... Kd5
{[%clk 0:00:04.4]} 65. Ke3 {[%clk 0:00:06.5]} 1-0

[Event "*** Titled Tuesday 3|2 Blitz"]
[Site "Chess.com"]
[Date "2016.08.02"]
[Round "3"]
[White "fireheart92"]
[Black "Maitreia"]
[Result "0-1"]
[WhiteElo "2253"]
[BlackElo "2370"]
[TimeControl "180+2"]
[EndTime "11:40:12 PDT"]
[Termination "Maitreia won on time"]

1. d4 {[%clk 0:03:01.9]} 1... Nf6 {[%clk 0:02:59]} 2. Nf3 {[%clk 0:03:03]} 2...
g6 {[%clk 0:03:00.3]} 3. Bg5 {[%clk 0:03:03]} 3... Bg7 {[%clk 0:03:01.7]} 4.
Nbd2 {[%clk 0:03:03.8]} 4... O-O {[%clk 0:03:00.8]} 5. c3 {[%clk 0:03:05.1]}
5... d6 {[%clk 0:02:58.7]} 6. e4 {[%clk 0:03:06]} 6... c5 {[%clk 0:02:55.7]} 7.
dxc5 {[%clk 0:03:06.1]} 7... dxc5 {[%clk 0:02:56.6]} 8. Bc4 {[%clk 0:03:07.2]}
8... Nc6 {[%clk 0:02:57.3]} 9. Qe2 {[%clk 0:03:07.4]} 9... Bg4 {[%clk
0:02:51.8]} 10. h3 {[%clk 0:02:56.2]} 10... Bxf3 {[%clk 0:02:52]} 11. Nxf3
{[%clk 0:02:57.3]} 11... h6 {[%clk 0:02:53.2]} 12. Bf4 {[%clk 0:02:58.3]} 12...
Nh5 {[%clk 0:02:52.3]} 13. Bh2 {[%clk 0:02:58.6]} 13... e5 {[%clk 0:02:40.1]}
14. O-O {[%clk 0:02:43.4]} 14... Nf4 {[%clk 0:02:32.2]} 15. Qe3 {[%clk
0:02:42.7]} 15... Qf6 {[%clk 0:02:31.5]} 16. Rfd1 {[%clk 0:02:26]} 16... b6
{[%clk 0:02:27.2]} 17. Rd7 {[%clk 0:02:25.4]} 17... Rad8 {[%clk 0:02:25.4]} 18.
Rad1 {[%clk 0:02:26.2]} 18... g5 {[%clk 0:02:12.6]} 19. R1d6 {[%clk 0:01:31]}
19... Qxd6 {[%clk 0:02:04.4]} 20. Rxd6 {[%clk 0:01:31.7]} 20... Rxd6 {[%clk
0:02:06.3]} 21. Bxf4 {[%clk 0:01:29.9]} 21... exf4 {[%clk 0:02:08.2]} 22. Qe2
{[%clk 0:01:29.5]} 22... Ne5 {[%clk 0:02:06]} 23. Nxe5 {[%clk 0:01:29.8]} 23...
Bxe5 {[%clk 0:02:07.9]} 24. Bd5 {[%clk 0:01:28.3]} 24... Kg7 {[%clk 0:02:06.5]}
25. h4 {[%clk 0:01:27.7]} 25... Rg6 {[%clk 0:01:47]} 26. h5 {[%clk 0:01:26.3]}
26... Rf6 {[%clk 0:01:47.6]} 27. Qg4 {[%clk 0:01:25.4]} 27... f3 {[%clk
0:01:46.5]} 28. g3 {[%clk 0:01:23.5]} 28... Rd8 {[%clk 0:01:43.4]} 29. a4 {[%clk
0:01:23.1]} 29... a6 {[%clk 0:01:34.8]} 30. Kf1 {[%clk 0:00:59.2]} 30... b5
{[%clk 0:01:35.6]} 31. axb5 {[%clk 0:00:52.7]} 31... axb5 {[%clk 0:01:37.5]} 32.
Ke1 {[%clk 0:00:53.9]} 32... b4 {[%clk 0:01:38.9]} 33. Kd2 {[%clk 0:00:54.6]}
33... bxc3+ {[%clk 0:01:36]} 34. bxc3 {[%clk 0:00:55.6]} 34... c4 {[%clk
0:01:34.6]} 35. Kc2 {[%clk 0:00:52.6]} 35... Rdd6 {[%clk 0:00:53.7]} 36. Qh3
{[%clk 0:00:25.3]} 36... Ra6 {[%clk 0:00:47.4]} 37. Bxc4 {[%clk 0:00:18.3]}
37... Rac6 {[%clk 0:00:48.5]} 38. Qf1 {[%clk 0:00:19]} 38... Rc5 {[%clk
0:00:43.2]} 39. Kd2 {[%clk 0:00:17]} 39... Rfc6 {[%clk 0:00:40.3]} 40. Bd5
{[%clk 0:00:17.9]} 40... Rb6 {[%clk 0:00:38]} 41. c4 {[%clk 0:00:16.2]} 41...
Ra5 {[%clk 0:00:36.1]} 42. c5 {[%clk 0:00:13.2]} 42... Rb2+ {[%clk 0:00:34.4]}
43. Kd3 {[%clk 0:00:13.4]} 43... Ra3+ {[%clk 0:00:32.6]} 44. Bb3 {[%clk
0:00:14.7]} 44... Raxb3+ {[%clk 0:00:25]} 45. Kc4 {[%clk 0:00:16.1]} 45... Rb1
{[%clk 0:00:14.9]} 46. Qh3 {[%clk 0:00:15.7]} 46... Rb8 {[%clk 0:00:12.5]} 47.
Qf5 {[%clk 0:00:13.9]} 47... Re8 {[%clk 0:00:12.9]} 48. Qd7 {[%clk 0:00:13.2]}
48... Rc1+ {[%clk 0:00:13.3]} 49. Kb5 {[%clk 0:00:14.1]} 49... Re6 {[%clk
0:00:15.2]} 50. Qd3 {[%clk 0:00:11]} 50... Rb1+ {[%clk 0:00:15.3]} 51. Qxb1
{[%clk 0:00:11.7]} 51... Bd4 {[%clk 0:00:13.5]} 52. Qc2 {[%clk 0:00:10.5]} 52...
Re5 {[%clk 0:00:11.4]} 53. Qd2 {[%clk 0:00:04.4]} 53... Bxc5 {[%clk 0:00:10.1]}
54. Kc4 {[%clk 0:00:05.6]} 54... g4 {[%clk 0:00:10.1]} 55. Qf4 {[%clk
0:00:05.5]} 55... Rg5 {[%clk 0:00:06.7]} 56. Qxg5+ {[%clk 0:00:06.7]} 56... hxg5
{[%clk 0:00:07.9]} 57. Kxc5 {[%clk 0:00:08]} 57... Kh6 {[%clk 0:00:07]} 58. Kd6
{[%clk 0:00:08.7]} 58... Kxh5 {[%clk 0:00:05.9]} 59. Ke7 {[%clk 0:00:09.5]}
59... Kg6 {[%clk 0:00:07.8]} 60. e5 {[%clk 0:00:09.6]} 60... Kf5 {[%clk
0:00:08]} 61. Kxf7 {[%clk 0:00:09.7]} 61... Kxe5 {[%clk 0:00:09]} 62. Kg6 {[%clk
0:00:11.4]} 62... Ke4 {[%clk 0:00:06.3]} 63. Kxg5 {[%clk 0:00:13]} 63... Kd3
{[%clk 0:00:07.9]} 64. Kxg4 {[%clk 0:00:14.4]} 64... Ke2 {[%clk 0:00:09.8]} 65.
Kh5 {[%clk 0:00:14.7]} 65... Kxf2 {[%clk 0:00:11.7]} 66. g4 {[%clk 0:00:16.3]}
66... Ke3 {[%clk 0:00:12.5]} 67. g5 {[%clk 0:00:17.9]} 67... f2 {[%clk
0:00:14.4]} 68. g6 {[%clk 0:00:19.4]} 68... f1=Q {[%clk 0:00:16.3]} 69. g7
{[%clk 0:00:19.9]} 69... Qf7+ {[%clk 0:00:17.9]} 70. Kh6 {[%clk 0:00:21.3]}
70... Qg8 {[%clk 0:00:19.8]} 71. Kg6 {[%clk 0:00:22.5]} 71... Ke4 {[%clk
0:00:21]} 72. Kf6 {[%clk 0:00:23.3]} 72... Kf4 {[%clk 0:00:21.7]} 0-1